bitfinex-derivatives/quotes_BTCF0:USTF0_20250729
["timestamp","ask_amount","ask_price","bid_price","bid_amount"]
[1753768262944,1.03558161,118880.0,118870.0,0.2915113]
[1753768263238,1.24595322,118880.0,118870.0,0.2915113]
[1753768263641,1.24595322,118880.0,118870.0,0.50188291]
[1753768264027,1.24595322,118880.0,118870.0,0.2915113]
[1753768264233,1.41420042,118880.0,118870.0,0.2915113]
[1753768264941,1.41420042,118880.0,118870.0,0.2219913]
[1753768265939,1.41420042,118880.0,118870.0,0.2697213]
[1753768267133,1.41420042,118880.0,118870.0,0.2915113]
[1753768267436,1.41420042,118880.0,118870.0,0.1722613]
[1753768267639,1.41420042,118880.0,118870.0,0.1966913]
[1753768267844,1.91420042,118880.0,118870.0,0.1966913]
[1753768268846,1.91420042,118880.0,118870.0,0.2361213]
[1753768269045,1.91420042,118880.0,118870.0,0.2915113]
[1753768270844,1.91420042,118880.0,118870.0,0.1722613]
[1753768271035,1.91420042,118880.0,118870.0,0.1966913]
[1753768272142,1.91420042,118880.0,118870.0,0.1722613]
[1753768272340,1.91420042,118880.0,118870.0,0.1966913]
[1753768274545,1.91380042,118880.0,118870.0,0.1966913]
[1753768275748,1.91380042,118880.0,118870.0,0.1722613]
[1753768276139,1.91380042,118880.0,118870.0,0.1964113]
[1753768285048,1.91380042,118880.0,118870.0,0.2719127]
[1753768285648,1.91380042,118880.0,118870.0,0.1964113]
[1753768288651,1.91380042,118880.0,118870.0,0.2374713]
[1753768291753,1.91380042,118880.0,118870.0,0.2724313]
[1753768292256,1.91380042,118880.0,118870.0,0.2937813]
[1753768292557,1.74555322,118880.0,118870.0,0.2937813]
[1753768293553,1.91380042,118880.0,118870.0,0.2937813]
[1753768293748,1.74555322,118880.0,118870.0,0.2937813]
[1753768295857,1.74555322,118880.0,118870.0,0.3692827]
[1753768297659,1.74555322,118880.0,118870.0,0.2937813]
[1753768297853,1.91380042,118880.0,118870.0,0.2937813]
[1753768298055,1.74555322,118880.0,118870.0,0.2937813]
[1753768298657,1.91380042,118880.0,118870.0,0.2937813]
[1753768300159,1.74555322,118880.0,118870.0,0.2937813]
[1753768301859,1.91380042,118880.0,118870.0,0.2937813]
[1753768302660,1.74555322,118880.0,118870.0,0.2937813]
[1753768304253,1.91380042,118880.0,118870.0,0.2937813]
[1753768304448,1.74555322,118880.0,118870.0,0.2937813]
[1753768304761,1.91380042,118880.0,118870.0,0.2937813]
[1753768305953,1.91380042,118880.0,118870.0,0.3692827]
[1753768308564,1.91380042,118880.0,118870.0,0.3343227]
[1753768308766,1.91380042,118880.0,118870.0,0.3194627]
[1753768309465,1.91380042,118880.0,118870.0,0.2981127]
[1753768312867,1.91380042,118880.0,118870.0,0.2226113]
[1753768316570,1.91380042,118880.0,118870.0,0.2691513]
[1753768317770,1.91380042,118880.0,118870.0,0.3446527]
[1753768318159,1.74555322,118880.0,118870.0,0.3446527]
[1753768318564,1.74555322,118880.0,118870.0,0.3667927]
[1753768319173,1.91380042,118880.0,118870.0,0.3667927]
[1753768326480,1.91380042,118880.0,118870.0,0.2912913]
[1753768332795,1.91380042,118880.0,118870.0,0.3667927]
[1753768338603,1.74555322,118880.0,118870.0,0.3667927]
[1753768338804,1.91380042,118880.0,118870.0,0.3667927]
[1753768339504,1.91380042,118880.0,118870.0,0.2912913]
[1753768341604,1.91380042,118880.0,118870.0,0.3667927]
[1753768344108,1.91380042,118880.0,118870.0,0.3202527]
[1753768348311,1.74555322,118880.0,118870.0,0.3202527]
[1753768348612,1.74555322,118880.0,118870.0,0.3670827]
[1753768349115,1.91380042,118880.0,118870.0,0.3670827]
[1753768350808,1.91380042,118880.0,118870.0,0.2915813]
[1753768351207,0.32393406,118880.0,118870.0,0.4177705]
[1753768351409,0.64430567,118880.0,118870.0,0.62814211]
[1753768351808,0.64430567,118880.0,118870.0,0.70364351]
[1753768352215,0.47605847,118880.0,118870.0,0.70364351]
[1753768352622,0.47605847,118880.0,118870.0,0.62814211]
[1753768352822,0.97605847,118880.0,118870.0,0.62814211]
[1753768353121,0.93393406,118880.0,118870.0,0.62814211]
[1753768353309,1.14430567,118880.0,118870.0,0.62814211]
[1753768353715,0.7782472,118880.0,118870.0,0.62814211]
[1753768355317,0.98861881,118880.0,118870.0,0.62814211]
[1753768356620,0.7782472,118880.0,118870.0,0.62814211]
[1753768357014,0.98861881,118880.0,118870.0,0.62814211]
[1753768357722,0.98861881,118880.0,118870.0,0.70364351]
[1753768359222,0.7782472,118880.0,118870.0,0.70364351]
[1753768359421,0.98861881,118880.0,118870.0,0.70364351]
[1753768359920,0.98861881,118880.0,118870.0,0.62814211]
[1753768360315,0.1261809,118890.0,118870.0,0.64605631]
[1753768360521,0.3344139,118890.0,118880.0,0.61214042]
[1753768361124,0.2923526,118890.0,118880.0,0.61214042]
[1753768361314,0.2502913,118890.0,118880.0,1.32784042]
[1753768361511,0.04,118890.0,118880.0,1.58504203]
[1753768361715,0.04,118890.0,118880.0,1.66054343]
[1753768363325,0.16312,118890.0,118880.0,1.66054343]
[1753768363630,0.16312,118890.0,118880.0,1.66154343]
[1753768364923,0.16312,118890.0,118880.0,1.45217182]
[1753768365129,0.16312,118890.0,118880.0,1.66254343]
[1753768365722,0.16312,118890.0,118880.0,1.66154343]
[1753768365930,0.16312,118890.0,118880.0,1.66254343]
[1753768366322,5.11989455,118900.0,118890.0,0.2658331]
[1753768366627,5.13783935,118900.0,118890.0,0.61401471]
[1753768367723,5.13783935,118900.0,118890.0,0.82438632]
[1753768368327,5.09578465,118900.0,118890.0,0.82438632]
[1753768370320,5.09578455,118900.0,118890.0,0.82438632]
[1753768372129,1.77604919,118900.0,118890.0,0.82438632]
[1753768377138,1.79066919,118900.0,118890.0,0.82438632]
[1753768377337,1.77604919,118900.0,118890.0,0.82438632]
[1753768380742,1.77604919,118900.0,118890.0,1.03475793]
[1753768381043,1.77604919,118900.0,118890.0,1.11025933]
[1753768382650,1.77604919,118900.0,118890.0,1.03475793]
[1753768383545,1.77604919,118900.0,118890.0,1.11025933]
[1753768385243,1.77604919,118900.0,118890.0,0.89988772]
[1753768390051,0.01462,118910.0,118900.0,0.265819]
[1753768390248,0.01,118910.0,118900.0,1.49409222]
[1753768390751,0.01,118910.0,118900.0,1.56959362]
[1753768391253,0.01,118910.0,118900.0,1.57781026]
[1753768391446,0.012,118910.0,118900.0,1.57781026]
[1753768393555,0.21958,118910.0,118900.0,1.57781026]
[1753768393755,0.21958,118910.0,118900.0,1.6453381]
[1753768396056,0.2522952,118920.0,118910.0,0.3181448]
[1753768396354,0.2622952,118920.0,118910.0,0.70979641]
[1753768397154,0.7622952,118920.0,118910.0,0.70979641]
[1753768398258,0.7632952,118920.0,118910.0,0.70979641]
[1753768400757,0.33296655,118930.0,118910.0,0.83594331]
[1753768400959,0.63114305,118930.0,118920.0,1.09469231]
[1753768402759,0.63214305,118930.0,118920.0,1.09469231]
[1753768402960,0.92177144,118930.0,118920.0,1.09469231]
[1753768403160,1.13214305,118930.0,118920.0,1.09469231]
[1753768404161,1.13214305,118930.0,118920.0,1.17543231]
[1753768404363,1.13214305,118930.0,118920.0,1.24514231]
[1753768405360,1.13114305,118930.0,118920.0,1.24514231]
[1753768405860,0.5635277,118940.0,118920.0,1.28270261]
[1753768406060,0.2102241,118930.0,118920.0,1.32474841]
[1753768406256,0.3302241,118930.0,118920.0,1.53512002]
[1753768406656,0.3302241,118930.0,118920.0,1.58165002]
[1753768406657,0.8302241,118930.0,118920.0,1.58165002]
[1753768407362,0.83880105,118930.0,118920.0,1.58165002]
[1753768410563,0.83980105,118930.0,118920.0,1.58165002]
[1753768411157,0.83980105,118930.0,118920.0,1.53960422]
[1753768411464,0.83980105,118930.0,118920.0,1.53964422]
[1753768436581,0.83980105,118930.0,118920.0,1.68432422]
[1753768437389,0.83980105,118930.0,118920.0,1.01500422]
[1753768437890,0.83980105,118930.0,118920.0,1.68432422]
[1753768442684,0.62957695,118930.0,118920.0,1.68432422]
[1753768442891,0.7891764,118930.0,118920.0,1.89469583]
[1753768443089,0.7891764,118930.0,118920.0,1.68432422]
[1753768455396,0.7891764,118930.0,118920.0,1.89469583]
[1753768455599,0.7891764,118930.0,118920.0,1.68432422]
[1753768457102,0.7891764,118930.0,118920.0,1.89469583]
[1753768457404,0.7891764,118930.0,118920.0,1.68432422]
[1753768460511,0.79382312,118930.0,118920.0,1.89469583]
[1753768462014,0.79382312,118930.0,118920.0,1.68432422]
[1753768462313,0.79382312,118930.0,118920.0,1.89469583]
[1753768463015,0.79382312,118930.0,118920.0,1.68432422]
[1753768466318,0.79426141,118930.0,118920.0,1.68432422]
[1753768467012,0.79426141,118930.0,118920.0,1.89469583]
[1753768467813,0.79426141,118930.0,118920.0,1.68432422]
[1753768473526,0.79426141,118930.0,118920.0,1.89469583]
[1753768474613,0.79426121,118930.0,118920.0,1.89469583]
[1753768477329,0.62608501,118930.0,118920.0,1.89469583]
[1753768477825,0.79426111,118930.0,118920.0,1.89469583]
[1753768482034,0.62608501,118930.0,118920.0,1.89469583]
[1753768483929,0.62608501,118930.0,118920.0,1.97019723]
[1753768484133,0.62608501,118930.0,118920.0,1.89469583]
[1753768484436,0.39943501,118930.0,118920.0,1.97019723]
[1753768484636,0.48943501,118930.0,118920.0,1.97019723]
[1753768485442,0.48943501,118930.0,118920.0,1.89469583]
[1753768486134,0.09608501,118930.0,118920.0,1.89469583]
[1753768491040,0.09608501,118930.0,118920.0,1.91367968]
[1753768491339,0.40473,118960.0,118950.0,0.5276482]
[1753768491642,0.11,118960.0,118950.0,1.61763142]
[1753768492031,0.61,118960.0,118950.0,1.61763142]
[1753768492239,0.61,118960.0,118950.0,1.82800303]
[1753768492946,0.611,118960.0,118950.0,1.61763142]
[1753768493443,0.111,118960.0,118950.0,1.61763142]
[1753768493836,0.111,118960.0,118950.0,1.63237738]
[1753768496145,0.11,118960.0,118950.0,1.63237738]
[1753768496547,0.11,118960.0,118950.0,1.61763142]
[1753768506942,0.278134,118960.0,118950.0,1.61763142]
[1753768507349,0.278134,118960.0,118950.0,0.94843142]
[1753768507655,0.521114,118960.0,118950.0,1.61847142]
[1753768512150,0.521114,118960.0,118950.0,0.94843142]
[1753768512350,0.521114,118960.0,118950.0,1.61843142]
[1753768513241,0.447654,118960.0,118950.0,1.61843142]
[1753768523349,0.339384,118960.0,118950.0,0.94843142]
[1753768523661,0.8033277,118960.0,118950.0,1.40893971]
[1753768524151,0.78277561,118960.0,118950.0,1.40893971]
[1753768524552,0.78277561,118960.0,118950.0,1.40905971]
[1753768524753,1.28277561,118960.0,118950.0,1.40905971]
[1753768528858,1.28277561,118960.0,118950.0,0.5276881]
[1753768529063,0.5874797,118950.0,118940.0,0.57027161]
[1753768529264,0.6974797,118950.0,118940.0,1.40923381]
[1753768530161,0.6974797,118950.0,118940.0,1.40919381]
[1753768531069,1.1974797,118950.0,118940.0,1.40919381]
[1753768531462,1.40785131,118950.0,118940.0,1.40919381]
[1753768532467,1.40785131,118950.0,118940.0,1.40915381]
[1753768533668,1.40785131,118950.0,118940.0,1.24087161]
[1753768534070,1.40785131,118950.0,118940.0,1.40903381]
[1753768535359,1.40785131,118950.0,118940.0,1.24087161]
[1753768535559,1.40785131,118950.0,118940.0,1.40903381]
[1753768536071,1.40785131,118950.0,118940.0,1.24087161]
[1753768536468,1.40785131,118950.0,118940.0,1.40903381]
[1753768537072,1.40785131,118950.0,118940.0,1.24087161]
[1753768539079,1.40785131,118950.0,118940.0,1.40903381]
[1753768542179,1.40785131,118950.0,118940.0,1.24087161]
[1753768542978,1.40785131,118950.0,118940.0,1.07028161]
[1753768543179,1.40785131,118950.0,118940.0,0.85991]
[1753768543372,1.40785131,118950.0,118940.0,1.24027161]
[1753768544472,1.42842335,118950.0,118940.0,1.24027161]
[1753768545380,1.42842335,118950.0,118940.0,0.57027161]
[1753768545579,1.42842335,118950.0,118940.0,1.24039161]
[1753768551683,1.40785131,118950.0,118940.0,1.24039161]
[1753768552385,1.23614682,118950.0,118940.0,1.24039161]
[1753768552585,1.02577521,118950.0,118940.0,0.57027161]
[1753768552885,1.02577521,118950.0,118940.0,1.61848542]
[1753768553084,1.0051797,118950.0,118940.0,1.61848542]
[1753768553787,1.21555131,118950.0,118940.0,1.61848542]
[1753768554287,1.23615576,118950.0,118940.0,1.61848542]
[1753768554887,1.21555131,118950.0,118940.0,1.61848542]
[1753768555187,1.0051797,118950.0,118940.0,1.61848542]
[1753768555388,1.02578666,118950.0,118940.0,1.61848542]
[1753768555988,1.23615827,118950.0,118940.0,1.40811381]
[1753768556188,1.21555131,118950.0,118940.0,1.40811381]
[1753768556389,1.23616137,118950.0,118940.0,1.40811381]
[1753768556789,1.23616137,118950.0,118940.0,1.23995161]
[1753768557189,1.23616137,118950.0,118940.0,1.40811391]
[1753768557589,1.23616137,118950.0,118940.0,0.73843391]
[1753768557790,1.23616137,118950.0,118940.0,1.40783391]
[1753768558591,1.02578976,118950.0,118940.0,1.40783391]
[1753768558893,1.02578976,118950.0,118940.0,1.61820552]
[1753768559493,0.99753976,118950.0,118940.0,1.61820552]
[1753768559693,1.11888966,118950.0,118940.0,1.61820552]
[1753768559888,0.88284966,118950.0,118940.0,1.61820552]
[1753768560093,0.8622396,118950.0,118940.0,1.61820552]
[1753768560290,0.61,118950.0,118940.0,1.82857713]
[1753768560794,0.11,118950.0,118940.0,1.61820552]
[1753768561389,0.2781481,118950.0,118940.0,1.61820552]
[1753768567198,0.2781481,118950.0,118940.0,0.94880552]
[1753768567401,0.2781481,118950.0,118940.0,1.61848552]
[1753768567603,0.2781481,118950.0,118940.0,0.94880552]
[1753768567802,0.3808681,118950.0,118940.0,1.61844552]
[1753768568005,0.4091181,118950.0,118940.0,1.61844552]
[1753768569103,0.4684181,118950.0,118940.0,1.61844552]
[1753768569898,0.3087781,118950.0,118940.0,0.94880552]
[1753768570104,0.5136281,118950.0,118940.0,1.61840552]
[1753768570304,1.0136281,118950.0,118940.0,1.61840552]
[1753768571906,1.0136281,118950.0,118940.0,0.94880552]
[1753768572106,1.0136281,118950.0,118940.0,1.61840552]
[1753768573201,1.0136281,118950.0,118940.0,0.94880552]
[1753768573399,1.0136281,118950.0,118940.0,1.61832552]
[1753768573904,1.0136281,118950.0,118940.0,0.94880552]
[1753768574211,1.0136281,118950.0,118940.0,1.61820552]
[1753768575510,1.0136281,118950.0,118940.0,0.94880552]
[1753768575707,1.0136281,118950.0,118940.0,1.61812552]
[1753768588719,1.0136281,118950.0,118940.0,1.44289322]
[1753768588720,1.08578611,118950.0,118940.0,1.44289322]
[1753768589024,1.08578611,118950.0,118940.0,1.61105672]
[1753768589518,1.03964611,118950.0,118940.0,1.61105672]
[1753768590217,1.0191481,118950.0,118940.0,1.61105672]
[1753768590418,1.03964853,118950.0,118940.0,1.61105672]
[1753768592925,1.03964853,118950.0,118940.0,1.44289322]
[1753768593226,1.03964853,118950.0,118940.0,0.77369322]
[1753768593424,1.08578853,118950.0,118940.0,1.44289322]
[1753768593624,1.0652881,118950.0,118940.0,1.44289322]
[1753768595926,1.0652881,118950.0,118940.0,1.61105652]
[1753768596127,1.0652881,118950.0,118940.0,1.44289322]
[1753768596527,1.0191481,118950.0,118940.0,1.44289322]
[1753768600129,1.02064575,118950.0,118940.0,1.44289322]
[1753768607829,1.02064575,118950.0,118940.0,0.77369322]
[1753768608026,1.02064575,118950.0,118940.0,1.44317322]
[1753768608231,1.02064575,118950.0,118940.0,0.77369322]
[1753768608430,1.02064575,118950.0,118940.0,1.44313322]
[1753768608636,1.02064575,118950.0,118940.0,0.77369322]
[1753768608834,1.02064575,118950.0,118940.0,1.44309322]
[1753768609433,1.06035575,118950.0,118940.0,1.44309322]
[1753768609733,1.27072736,118950.0,118940.0,0.77369322]
[1753768609934,1.27072736,118950.0,118940.0,1.23272161]
[1753768610133,1.27072736,118950.0,118940.0,1.44309322]
[1753768610434,1.06035575,118950.0,118940.0,1.44309322]
[1753768611434,1.06035575,118950.0,118940.0,0.77369322]
[1753768611635,1.06035575,118950.0,118940.0,1.44309322]
[1753768614434,1.27072736,118950.0,118940.0,1.23272161]
[1753768614841,1.06035575,118950.0,118940.0,1.23272161]
[1753768617536,1.27072736,118950.0,118940.0,0.55852161]
[1753768619946,1.08076335,118950.0,118940.0,0.55852161]
[1753768620153,1.08076335,118950.0,118940.0,0.76889322]
[1753768620848,1.29113496,118950.0,118940.0,0.55852161]
[1753768621449,1.08076335,118950.0,118940.0,0.55852161]
[1753768623353,1.29113496,118950.0,118940.0,0.76889322]
[1753768623548,1.29113496,118950.0,118940.0,0.55852161]
[1753768623955,1.29113496,118950.0,118940.0,0.76889322]
[1753768624150,1.27072736,118950.0,118940.0,0.76889322]
[1753768624550,1.27072736,118950.0,118940.0,0.55852161]
[1753768625155,1.29113674,118950.0,118940.0,0.55852161]
[1753768630461,1.29113674,118950.0,118940.0,0.76889322]
[1753768638868,1.29113674,118950.0,118940.0,0.55852161]
[1753768642969,1.29113674,118950.0,118940.0,0.34815]
[1753768643165,1.29113674,118950.0,118940.0,0.55852161]
[1753768645369,0.3941973,118930.0,118920.0,0.62530471]
[1753768645569,0.5141973,118930.0,118920.0,1.50487632]
[1753768645969,0.5141973,118930.0,118920.0,1.63979632]
[1753768646169,0.51569495,118930.0,118920.0,1.63979632]
[1753768646670,0.52839458,118930.0,118920.0,1.63979632]
[1753768647472,0.52839458,118930.0,118920.0,1.64179632]
[1753768647876,1.02839458,118930.0,118920.0,1.64179632]
[1753768648575,1.02839458,118930.0,118920.0,1.71929772]
[1753768649476,1.02839458,118930.0,118920.0,1.64379632]
[1753768658386,1.02839458,118930.0,118920.0,1.71929772]
[1753768658983,1.02839458,118930.0,118920.0,1.64379632]
[1753768660281,1.01569495,118930.0,118920.0,1.64379632]
[1753768664888,1.0275905,118930.0,118920.0,1.64379632]
[1753768665491,1.01569495,118930.0,118920.0,1.64379632]
[1753768667292,1.01569495,118930.0,118920.0,1.71929772]
[1753768668998,1.01569495,118930.0,118920.0,1.64379632]
[1753768670000,1.01569495,118930.0,118920.0,1.2230531]
[1753768670204,1.01569495,118930.0,118920.0,1.64379632]
[1753768671599,1.27220656,118930.0,118920.0,1.60175452]
[1753768671798,1.06183495,118930.0,118920.0,1.60175452]
[1753768672998,1.06183495,118930.0,118920.0,1.59975452]
[1753768673199,1.06183495,118930.0,118920.0,1.60075452]
[1753768673393,1.01569495,118930.0,118920.0,1.44195452]
[1753768673599,1.27220656,118930.0,118920.0,1.38759291]
[1753768676307,1.06183495,118930.0,118920.0,1.59796452]
[1753768677210,1.06183495,118930.0,118920.0,1.38759291]
[1753768678008,1.27220656,118930.0,118920.0,1.38759291]
[1753768678209,1.22606656,118930.0,118920.0,0.55020161]
[1753768678409,1.27220656,118930.0,118920.0,1.1771412]
[1753768678605,1.27220656,118930.0,118920.0,1.38751281]
[1753768679309,1.27220656,118930.0,118920.0,1.21932161]
[1753768681815,1.06183495,118930.0,118920.0,1.21932161]
[1753768682112,1.27220656,118930.0,118920.0,1.21932161]
[1753768687318,1.22606656,118930.0,118920.0,0.85294]
[1753768687508,1.27220656,118930.0,118920.0,1.21932161]
[1753768689421,1.27220656,118930.0,118920.0,1.00895]
[1753768689721,1.27220656,118930.0,118920.0,1.21932161]
[1753768689922,1.94132656,118930.0,118920.0,1.00895]
[1753768690720,1.94132656,118930.0,118920.0,1.21932161]
[1753768691413,1.94132656,118930.0,118920.0,0.55020161]
[1753768691613,1.94132656,118930.0,118920.0,1.21932161]
[1753768693621,1.94132656,118930.0,118920.0,0.55020161]
[1753768693819,2.0075252,118930.0,118920.0,0.55020161]
[1753768696126,2.0075252,118930.0,118920.0,0.33983]
[1753768696325,2.0075252,118930.0,118920.0,0.55020161]
[1753768699027,2.0075652,118930.0,118920.0,0.55020161]
[1753768706730,0.98748495,118930.0,118920.0,0.92876432]
[1753768706925,0.78971495,118930.0,118920.0,0.92876432]
[1753768707435,0.87957495,118930.0,118920.0,0.92876432]
[1753768707636,0.90782495,118930.0,118920.0,0.92876432]
[1753768708737,0.96679495,118930.0,118920.0,0.92876432]
[1753768708937,1.01200495,118930.0,118920.0,0.92876432]
[1753768716545,1.05814495,118930.0,118920.0,0.76057322]
[1753768719950,1.26851656,118930.0,118920.0,0.76057322]
[1753768720551,1.26851656,118930.0,118920.0,0.92876432]
[1753768720749,1.05814495,118930.0,118920.0,0.92876432]
[1753768721550,1.05814495,118930.0,118920.0,0.76057322]
[1753768722655,1.05814495,118930.0,118920.0,0.92876432]
[1753768727655,1.05814495,118930.0,118920.0,0.76057322]
[1753768728053,0.1682053,118910.0,118900.0,0.0755014]
[1753768728259,1.56536617,118910.0,118900.0,0.0755014]
[1753768728453,0.2717294,118900.0,118890.0,0.04912]
[1753768728647,0.89496262,118900.0,118890.0,0.04912]
[1753768729349,0.89646027,118900.0,118890.0,0.04912]
[1753768729548,0.68608866,118900.0,118890.0,0.54819161]
[1753768729749,1.4832651,118900.0,118890.0,0.33782]
[1753768730149,1.41692687,118900.0,118890.0,0.33782]
[1753768730550,2.06546027,118900.0,118890.0,0.34182]
[1753768730754,1.92515296,118900.0,118890.0,0.34182]
[1753768732050,1.92511296,118900.0,118890.0,0.34182]
[1753768732554,1.92511296,118900.0,118870.0,7.424e-05]
[1753768732555,0.3502477,118880.0,118870.0,7.424e-05]
[1753768732755,1.71007952,118880.0,118870.0,0.04919424]
[1753768732951,1.42964361,118880.0,118870.0,0.04919424]
[1753768733146,1.72145562,118880.0,118870.0,7.424e-05]
[1753768733348,1.72295327,118880.0,118870.0,7.424e-05]
[1753768733950,2.22295327,118880.0,118870.0,7.424e-05]
[1753768734351,2.22295327,118880.0,118870.0,0.05119424]
[1753768735452,1.94251736,118880.0,118870.0,0.05119424]
[1753768736159,1.94251736,118880.0,118870.0,0.05219424]
[1753768743052,0.99312145,118880.0,118870.0,0.62133015]
[1753768743252,0.79974535,118880.0,118870.0,0.78959195]
[1753768746358,0.84998535,118880.0,118870.0,0.78959195]
[1753768749656,0.84998535,118880.0,118870.0,0.50615604]
[1753768749859,0.87823535,118880.0,118870.0,0.50615604]
[1753768750161,0.98174535,118880.0,118870.0,0.78659195]
[1753768754773,0.98174535,118880.0,118870.0,0.50615604]
[1753768755978,0.98174535,118880.0,118870.0,0.78659195]
[1753768760276,0.98174535,118880.0,118870.0,0.50615604]
[1753768761765,0.68017765,118880.0,118870.0,0.78659195]
[1753768761969,0.63149765,118880.0,118870.0,0.78659195]
[1753768762572,0.47853535,118880.0,118870.0,0.78659195]
[1753768764779,0.47853535,118880.0,118870.0,0.95483195]
[1753768765870,0.47853535,118880.0,118870.0,0.78659195]
[1753768769877,0.31028765,118880.0,118870.0,0.78659195]
[1753768770382,0.47853535,118880.0,118870.0,0.78659195]
[1753768771175,0.13149765,118880.0,118870.0,0.78659195]
[1753768771480,0.13145765,118880.0,118870.0,1.06702786]
[1753768771684,0.13145765,118880.0,118870.0,0.78659195]
[1753768771979,0.13145765,118880.0,118870.0,0.95483195]
[1753768772681,0.13145765,118880.0,118870.0,0.78659195]
[1753768773282,0.13145765,118880.0,118870.0,0.95483195]
[1753768773580,0.13145765,118880.0,118870.0,1.03033335]
[1753768775882,0.00149765,118880.0,118870.0,1.03033335]
[1753768776775,0.04868,118900.0,118890.0,0.3014535]
[1753768776976,0.17868,118900.0,118890.0,1.45506941]
[1753768778681,0.18268,118900.0,118890.0,1.45506941]
[1753768779578,0.18268,118900.0,118890.0,1.46588719]
[1753768783590,0.134,118900.0,118890.0,1.46588719]
[1753768795901,0.17988,118900.0,118890.0,1.46588719]
[1753768798600,0.134,118900.0,118890.0,1.46588719]
[1753768802504,0.134,118900.0,118890.0,1.54138859]
[1753768803100,0.134,118900.0,118890.0,0.86878859]
[1753768803301,0.134,118900.0,118890.0,1.54038859]
[1753768804704,0.084,118900.0,118890.0,1.54038859]
[1753768806810,0.084,118900.0,118890.0,1.54218859]
[1753768807198,0.2980959,118900.0,118890.0,1.54218859]
[1753768807707,0.2980959,118900.0,118890.0,1.5421695]
[1753768808005,0.2980959,118900.0,118890.0,1.54233276]
[1753768808502,0.2980959,118900.0,118890.0,1.46684719]
[1753768808702,0.2980959,118900.0,118890.0,1.54233774]
[1753768808901,0.2522159,118900.0,118890.0,1.54233774]
[1753768809206,0.2980959,118900.0,118890.0,1.54233774]
[1753768809509,0.2522159,118900.0,118890.0,0.78246941]
[1753768809700,0.4292159,118900.0,118890.0,1.53151762]
[1753768809901,0.4557559,118900.0,118890.0,1.1756335]
[1753768810101,0.5042959,118900.0,118890.0,1.1756335]
[1753768810910,1.0042959,118900.0,118890.0,1.1756335]
[1753768812808,1.0042959,118900.0,118890.0,1.45606941]
[1753768813211,0.9557559,118900.0,118890.0,1.30518941]
[1753768813511,1.0036459,118900.0,118890.0,1.45322941]
[1753768813703,1.0036459,118900.0,118890.0,1.1727935]
[1753768814709,1.0036459,118900.0,118890.0,1.45322941]
[1753768815508,1.0036459,118900.0,118890.0,0.8418335]
[1753768815811,1.0036459,118900.0,118890.0,1.1728635]
[1753768817105,1.0036459,118900.0,118890.0,0.4992635]
[1753768817609,0.9557559,118900.0,118890.0,0.4992635]
[1753768817810,1.0036459,118900.0,118890.0,0.4992635]
[1753768821606,1.0036459,118900.0,118890.0,0.1682335]
[1753768821813,1.28408181,118900.0,118890.0,0.0491]
[1753768822406,1.28408181,118900.0,118890.0,0.2173302]
[1753768822707,1.0036459,118900.0,118890.0,0.2173302]
[1753768822913,1.0036459,118900.0,118890.0,0.4992602]
[1753768828615,1.28408181,118900.0,118890.0,0.33103]
[1753768831118,1.28408181,118900.0,118890.0,0.4992601]
[1753768831320,1.28408181,118900.0,118890.0,0.33103]
[1753768832720,1.28408181,118900.0,118890.0,0.4992601]
[1753768833320,1.28408181,118900.0,118890.0,0.33103]
[1753768835433,1.28408181,118900.0,118890.0,0.4992601]
[1753768836432,1.28408181,118900.0,118890.0,0.33103]
[1753768836827,1.42426302,118900.0,118890.0,0.54133856]
[1753768837027,1.42426302,118900.0,118890.0,0.70956866]
[1753768838133,1.42426302,118900.0,118890.0,0.54133856]
[1753768838833,1.42426302,118900.0,118890.0,0.33103]
[1753768839034,1.42426302,118900.0,118890.0,0.54133856]
[1753768839337,2.09622302,118900.0,118890.0,0.0491]
[1753768839732,0.4075001,118890.0,118880.0,0.21030856]
[1753768839937,0.2936043,118880.0,118870.0,1.4237261]
[1753768840131,0.73782286,118880.0,118870.0,1.4237261]
[1753768840328,0.5275143,118880.0,118870.0,1.4237261]
[1753768840524,0.73782286,118880.0,118870.0,1.4237261]
[1753768840734,0.73782286,118880.0,118870.0,1.49921431]
[1753768841732,0.74802402,118880.0,118870.0,1.49921431]
[1753768843332,0.73782286,118880.0,118870.0,1.49921431]
[1753768843527,0.89865142,118880.0,118870.0,0.25855245]
[1753768843732,0.94387142,118880.0,118870.0,1.07751245]
[1753768843941,1.61591142,118880.0,118870.0,0.32998424]
[1753768844937,2.11591142,118880.0,118870.0,0.32998424]
[1753768845137,2.11691142,118880.0,118870.0,0.32998424]
[1753768845333,2.11891142,118880.0,118870.0,0.32998424]
[1753768845838,2.12932134,118880.0,118870.0,0.32998424]
[1753768846736,1.9892214,118880.0,118870.0,0.32998424]
[1753768847138,1.9892214,118880.0,118870.0,0.18306424]
[1753768847639,1.9892214,118880.0,118870.0,0.32998424]
[1753768852943,0.3986823,118860.0,118850.0,1.1596965]
[1753768853139,0.5186823,118860.0,118850.0,1.1596965]
[1753768853341,0.5186823,118860.0,118850.0,0.99141]
[1753768853537,0.5186823,118860.0,118850.0,1.27192718]
[1753768853743,0.58616549,118860.0,118850.0,1.27192718]
[1753768854041,0.58616549,118860.0,118850.0,0.99141]
[1753768854243,0.5186823,118860.0,118850.0,0.99141]
[1753768854447,1.0186823,118860.0,118850.0,1.1606964]
[1753768854644,0.9734623,118860.0,118850.0,1.44121358]
[1753768854845,1.29919948,118860.0,118850.0,0.32165]
[1753768855145,1.29919948,118860.0,118850.0,0.99353]
[1753768856543,1.29919948,118860.0,118850.0,0.32165]
[1753768857844,1.97095948,118860.0,118850.0,0.17473]
[1753768858444,1.97095948,118860.0,118850.0,0.002]
[1753768858942,1.97095948,118860.0,118850.0,0.04785]
[1753768859245,2.03859671,118860.0,118850.0,0.002]
[1753768865246,2.03859671,118860.0,118850.0,0.04785]
[1753768865644,2.03859671,118860.0,118850.0,0.002]
[1753768865944,2.05798567,118860.0,118850.0,0.002]
[1753768866745,2.19845663,118860.0,118850.0,0.002]
[1753768869540,1.52669663,118860.0,118850.0,0.002]
[1753768869737,0.68763723,118860.0,118850.0,0.70042977]
[1753768869942,0.83590883,118860.0,118850.0,0.70042977]
[1753768870748,0.83590883,118860.0,118850.0,0.77044931]
[1753768871047,0.66763723,118860.0,118850.0,0.77044931]
[1753768871438,0.6,118860.0,118850.0,0.77044931]
[1753768872039,0.1,118860.0,118850.0,0.77044931]
[1753768872750,0.2682716,118860.0,118850.0,0.77044931]
[1753768872936,0.1,118860.0,118850.0,0.77044931]
[1753768873544,0.2523816,118880.0,118870.0,0.4917575]
[1753768873744,0.3723816,118880.0,118870.0,0.77227111]
[1753768874653,0.5539716,118880.0,118870.0,0.77227111]
[1753768874852,0.6002816,118880.0,118870.0,0.77227111]
[1753768875053,0.6022816,118880.0,118870.0,0.77227111]
[1753768875646,0.6562616,118880.0,118870.0,0.77227111]
[1753768878353,0.6552616,118880.0,118870.0,0.77227111]
[1753768879255,0.6542616,118880.0,118870.0,0.77227111]
[1753768882251,0.6542616,118880.0,118850.0,0.2367095]
[1753768882252,0.4505116,118880.0,118850.0,0.2367095]